bitfinex-derivatives/quotes_ETHF0:USTF0_20250106
["timestamp","ask_amount","ask_price","bid_price","bid_amount"]
[1736168449600,1.066,3642.5,3642.4,41.50921]
[1736168449803,1.3406,3642.5,3642.4,41.50921]
[1736168451105,0.2746,3642.5,3642.4,41.50921]
[1736168451307,1.066,3642.6,3642.5,0.2746]
[1736168451511,1.066,3642.6,3642.5,2.48052561]
[1736168451814,0.27457,3643.0,3642.9,0.27456]
[1736168452002,1.34057,3643.0,3642.9,0.27456]
[1736168452306,0.27459,3642.8,3642.7,0.27457]
[1736168453800,0.27457,3643.0,3642.9,0.27456]
[1736168454004,1.34057,3643.0,3642.9,0.27456]
[1736168454200,1.066,3643.0,3642.9,0.27456]
[1736168454409,1.066,3643.0,3642.9,0.71446]
[1736168454809,3.2078,3643.3,3642.9,0.4399]
[1736168455107,3.48234,3643.3,3643.2,0.27455]
[1736168455307,4.54834,3643.3,3643.2,0.27455]
[1736168457211,0.27456,3643.1,3643.0,0.27455]
[1736168458118,1.066,3643.2,3642.9,0.4399]
[1736168458411,1.066,3643.2,3643.1,0.27456]
[1736168458604,1.34055,3643.2,3643.1,0.27456]
[1736168458806,1.066,3643.2,3643.1,0.27456]
[1736168459413,1.066,3643.3,3643.2,0.27455]
[1736168459606,1.066,3643.3,3643.2,0.69555]
[1736168459815,3.2078,3643.7,3643.6,0.27452]
[1736168460018,4.2738,3643.7,3643.6,0.27452]
[1736168460402,4.2738,3643.7,3643.6,0.69942]
[1736168461514,4.2738,3643.7,3643.6,41.49942]
[1736168461713,0.27448,3644.1,3644.0,0.27448]
[1736168461915,7.76283117,3644.2,3644.1,0.27448]
[1736168462418,4.2738,3644.2,3644.1,0.27448]
[1736168462610,4.54827,3644.2,3644.1,0.27448]
[1736168463116,4.2738,3644.2,3644.1,0.27448]
[1736168463309,3.2078,3644.2,3644.1,0.27448]
[1736168463509,4.2738,3644.2,3644.1,0.27448]
[1736168463715,1.066,3644.2,3644.1,0.27448]
[1736168466421,0.27446,3644.4,3643.8,3.2078]
[1736168466722,0.27446,3644.4,3644.3,0.27446]
[1736168466921,1.33946,3644.4,3644.3,0.27446]
[1736168470822,1.065,3644.4,3644.3,0.27446]
[1736168471212,0.8765,3644.6,3644.5,0.27445]
[1736168471426,1.9415,3644.6,3644.5,0.27445]
[1736168472014,10.76455117,3645.0,3644.3,2.20592561]
[1736168472313,10.76455117,3645.0,3644.2,3.653]
[1736168472314,1.065,3645.1,3644.7,2.20592561]
[1736168472518,1.065,3645.1,3645.0,0.27441]
[1736168473423,3.21455117,3645.3,3645.2,0.2744]
[1736168474020,3.21455117,3645.3,3645.2,41.0744]
[1736168474430,6.42235117,3646.0,3645.9,0.27434]
[1736168474725,6.42235117,3646.0,3645.9,2.48026561]
[1736168474916,6.69669117,3646.0,3645.6,0.8598]
[1736168475115,0.27439,3645.4,3645.3,0.27438]
[1736168475323,1.065,3645.4,3645.3,0.27438]
[1736168475728,1.33938,3645.4,3645.3,0.27438]
[1736168475928,0.27438,3645.4,3645.3,0.27438]
[1736168476120,1.33938,3645.4,3645.3,0.27438]
[1736168477227,1.065,3645.4,3645.3,0.27438]
[1736168477824,1.33938,3645.4,3645.3,0.27438]
[1736168478023,1.065,3645.4,3645.3,0.27438]
[1736168478418,1.33938,3645.4,3645.3,0.27438]
[1736168479034,1.065,3645.4,3645.3,0.27438]
[1736168479529,1.33938,3645.4,3645.3,0.27438]
[1736168479728,0.2744,3645.1,3645.0,0.27441]
[1736168479920,0.27447,3644.3,3644.2,0.27447]
[1736168480125,0.27447,3644.2,3644.1,3.2078]
[1736168480326,0.27447,3644.2,3644.1,3.48228]
[1736168480727,1.33947,3644.2,3644.1,3.48228]
[1736168480928,1.065,3644.2,3644.1,3.48228]
[1736168481328,1.33947,3644.2,3644.1,3.48228]
[1736168482021,1.33947,3644.2,3644.1,3.2078]
[1736168482226,1.33947,3644.2,3643.8,40.8]
[1736168482227,0.2745,3643.9,3643.8,41.0745]
[1736168482435,2.20592561,3643.9,3643.5,3.2078]
[1736168482628,0.27451,3643.8,3643.7,0.27451]
[1736168482929,2.20592561,3643.9,3643.5,3.2078]
[1736168482930,0.2745,3643.9,3643.8,0.27449]
[1736168483232,0.2745,3643.9,3643.5,3.2078]
[1736168483233,0.27449,3644.0,3643.9,0.27449]
[1736168483728,0.411,3644.1,3643.6,0.4261]
[1736168483934,0.68548,3644.1,3644.0,0.27449]
[1736168484329,3.2078,3644.6,3643.7,0.4105]
[1736168484524,1.068,3644.5,3643.8,1.11906]
[1736168484725,0.27447,3644.3,3644.2,0.27447]
[1736168484931,2.20592561,3644.3,3643.6,0.4261]
[1736168485136,0.2745,3643.9,3643.8,0.2745]
[1736168485834,0.27451,3643.7,3643.6,41.07451]
[1736168486036,1.34251,3643.7,3643.6,40.8]
[1736168487531,1.34251,3643.7,3643.6,41.07452]
[1736168487936,1.34251,3643.7,3643.6,40.8]
[1736168488137,3.54843561,3643.7,3643.6,40.8]
[1736168488939,0.27455,3643.3,3643.2,0.27455]
[1736168489442,0.27455,3643.3,3643.2,41.07455]
[1736168490038,0.27454,3643.4,3643.3,0.27454]
[1736168490633,0.27455,3643.2,3643.1,3.89285]
[1736168490840,0.27454,3643.3,3643.2,0.27454]
[1736168491040,0.27454,3643.3,3643.2,41.07454]
[1736168491229,2.20592561,3643.4,3643.1,3.2078]
[1736168491538,2.20592561,3643.4,3641.7,1.20078936]
[1736168491539,0.2746,3642.5,3642.4,0.27461]
[1736168491839,0.27461,3642.4,3642.3,3.2078]
[1736168492236,0.27461,3642.4,3642.3,3.48242]
[1736168492634,1.3436,3642.5,3642.4,0.27461]
[1736168492836,1.3436,3642.5,3642.3,3.2078]
[1736168493035,0.27462,3642.3,3642.2,4.30754568]
[1736168493440,0.27464,3642.1,3641.9,3.64]
[1736168493638,0.4163,3642.4,3641.9,3.64]
[1736168493840,0.27464,3642.0,3641.9,3.91464]
[1736168494140,0.27464,3642.1,3642.0,0.27464]
[1736168494343,5.41372561,3642.2,3641.4,3.2078]
[1736168494537,0.4163,3642.4,3641.2,1.14659]
[1736168494538,0.27469,3641.4,3641.2,1.14659]
[1736168494742,1.069,3641.3,3641.2,1.1466]
[1736168495839,0.4333,3642.1,3641.2,41.6719]
[1736168496042,0.27466,3641.7,3641.6,0.27466]
[1736168496243,1.069,3642.0,3641.2,41.6719]
[1736168496244,2.20592561,3641.9,3641.2,41.6719]
[1736168496439,0.27467,3641.7,3641.6,0.27467]
[1736168496832,0.27467,3641.6,3641.5,0.27467]
[1736168497245,2.20592561,3641.9,3641.2,40.8]
[1736168497547,0.27469,3641.3,3641.2,40.8]
[1736168497736,4.55149,3641.3,3641.2,40.8]
[1736168498134,0.27471,3641.1,3640.5,4.72674568]
[1736168498335,4.2768,3641.3,3640.5,4.72674568]
[1736168498541,4.2768,3641.3,3641.0,0.27471]
[1736168498542,0.2747,3641.2,3641.0,0.27471]
[1736168498740,0.2747,3641.2,3641.1,0.27471]
[1736168498938,6.48272561,3641.3,3640.6,40.8]
[1736168499337,5.41372561,3641.3,3640.6,40.8]
[1736168499533,1.069,3641.2,3640.6,40.8]
[1736168499732,0.27474,3640.7,3640.6,40.8]
[1736168500143,0.27473,3640.8,3640.6,41.07474]
[1736168500335,1.522,3641.2,3640.6,41.07474]
[1736168500538,0.27474,3640.7,3640.6,41.07474]
[1736168500736,0.27475,3640.6,3640.4,0.27475]
[1736168500937,1.069,3640.7,3640.6,0.27474]
[1736168501139,0.27473,3640.8,3640.5,0.414]
[1736168501346,1.069,3640.8,3640.7,0.27474]
[1736168501738,1.069,3640.8,3640.5,0.414]
[1736168502147,1.069,3640.8,3640.7,0.27474]
[1736168502346,1.34373,3640.8,3640.7,0.27474]
[1736168502547,1.069,3640.8,3640.7,0.27474]
[1736168503045,5.41372561,3641.3,3640.5,0.414]
[1736168503046,3.2078,3641.3,3640.5,0.414]
[1736168503244,3.2078,3641.3,3641.2,0.2747]
[1736168503444,4.2768,3641.3,3641.2,0.2747]
[1736168504050,4.5515,3641.3,3641.2,0.2747]
[1736168504348,4.2768,3641.3,3641.2,0.2747]
[1736168505445,3.2078,3641.3,3641.2,0.2747]
[1736168505641,2.20592561,3642.3,3641.2,5.0]
[1736168505841,3.2078,3642.4,3642.2,0.27462]
[1736168506049,1.34362,3642.3,3642.2,0.27462]
[1736168506447,1.069,3642.3,3642.2,0.27462]
[1736168506753,3.2078,3642.4,3642.3,0.27462]
[1736168507047,4.2768,3642.4,3642.3,0.27462]
[1736168508246,1.069,3642.4,3642.3,0.27462]
[1736168508640,0.27458,3642.8,3642.2,3.2078]
[1736168508848,1.34359,3642.7,3642.2,3.2078]
[1736168509041,1.34359,3642.7,3642.5,0.2746]
[1736168509042,0.27459,3642.6,3642.5,0.2746]
[1736168509253,0.27459,3642.7,3642.2,3.2078]
[1736168509445,1.069,3642.6,3642.5,0.2746]
[1736168510853,1.34359,3642.6,3642.5,0.2746]
[1736168511151,1.069,3642.6,3642.2,3.2078]
[1736168511454,0.2746,3642.5,3642.4,0.27461]
[1736168511654,1.069,3642.6,3642.2,3.2078]
[1736168511853,1.34359,3642.6,3642.5,0.2746]
[1736168512064,0.2746,3642.5,3642.4,0.27461]
[1736168512253,0.27462,3642.3,3642.2,3.2078]
[1736168512456,1.069,3642.6,3642.2,3.2078]
[1736168512666,1.069,3642.6,3642.4,0.2746]
[1736168512861,1.34359,3642.6,3642.5,0.2746]
[1736168514168,0.2746,3642.5,3642.4,0.2746]
[1736168514362,1.069,3642.6,3642.2,3.2078]
[1736168514565,1.069,3642.6,3642.5,0.2746]
[1736168514566,1.3436,3642.6,3642.5,0.2746]
[1736168515165,1.069,3642.6,3642.5,0.2746]
[1736168515468,0.27459,3642.7,3642.6,0.27459]
[1736168515663,1.078,3642.7,3642.6,0.27459]
[1736168516063,0.2746,3642.6,3642.5,0.2746]
[1736168516263,1.35259,3642.7,3642.6,0.27459]
[1736168517169,1.078,3642.7,3642.6,0.27459]
[1736168518169,1.35259,3642.7,3642.6,0.27459]
[1736168518464,1.078,3642.7,3642.6,0.27459]
[1736168518868,0.27457,3642.9,3642.2,4.32995]
[1736168519168,0.4156,3643.1,3642.4,2.20592561]
[1736168519360,0.69016,3643.1,3643.0,0.27456]
[1736168519559,1.76816,3643.1,3643.0,41.07456]
[1736168519959,0.69016,3643.1,3643.0,41.07456]
[1736168520163,1.76816,3643.1,3643.0,41.07456]
[1736168520669,1.078,3643.3,3643.2,0.27455]
[1736168520871,1.078,3643.4,3643.3,0.27454]
[1736168521365,1.35253,3643.4,3643.3,0.27454]
[1736168522262,1.078,3643.4,3643.3,0.27454]
[1736168522471,0.27451,3643.7,3643.6,0.27451]
[1736168522667,3.6336,3644.1,3643.6,2.20592561]
[1736168522966,0.27447,3644.3,3644.2,0.27447]
[1736168523169,3.2078,3644.5,3644.4,0.27446]
[1736168523371,4.56025,3644.5,3644.4,0.27446]
[1736168524466,3.2078,3644.5,3644.4,0.27446]
[1736168524778,4.56025,3644.5,3644.4,0.27446]
[1736168525366,4.2858,3644.5,3644.4,0.27446]
[1736168525670,4.56025,3644.5,3644.4,0.27446]
[1736168527975,3.2078,3644.5,3644.4,0.27446]
[1736168528169,1.078,3644.6,3644.2,2.20592561]
[1736168528364,1.078,3644.6,3644.5,2.48037561]
[1736168528976,3.2078,3645.1,3644.7,0.27443]
[1736168529272,0.27442,3644.9,3644.8,0.27442]
[1736168529775,1.35242,3644.9,3644.8,0.27442]
[1736168533373,0.27444,3644.7,3644.6,0.27444]
[1736168533578,0.27445,3644.6,3644.5,0.27444]
[1736168534079,0.4212,3644.8,3644.1,0.4331]
[1736168534375,0.27444,3644.7,3644.6,0.27444]
[1736168534578,0.4212,3644.8,3644.2,0.68619]
[1736168534773,0.27443,3644.8,3644.7,0.27443]
[1736168535080,0.27442,3645.0,3644.9,0.27441]
[1736168535274,1.35242,3645.0,3644.9,0.27441]
[1736168535475,1.078,3645.0,3644.9,0.27441]
[1736168536681,4.2858,3645.1,3645.0,0.27441]
[1736168536883,4.2858,3645.1,3644.7,0.418]
[1736168537074,0.27443,3644.9,3644.8,0.27442]
[1736168537475,0.4402,3645.0,3644.5,3.2078]
[1736168537677,0.27444,3644.7,3644.6,0.27443]
[1736168541080,0.27443,3644.8,3644.7,0.27442]
[1736168541276,4.56021,3645.1,3644.6,0.68611]
[1736168541580,4.56021,3645.1,3645.0,0.27441]
[1736168541973,4.56021,3645.1,3645.0,41.07441]
[1736168542481,1.35141,3645.1,3645.0,41.07441]
[1736168542677,1.077,3645.1,3645.0,0.27441]
[1736168542875,0.435,3645.4,3644.8,0.8632]
[1736168543080,0.435,3645.4,3645.0,0.96044]
[1736168543285,1.077,3645.3,3645.1,0.2744]
[1736168543582,1.077,3645.3,3645.2,0.2744]
[1736168544181,0.70938,3645.4,3645.3,0.27439]
[1736168544384,1.78738,3645.4,3645.3,0.27439]
[1736168545983,1.78738,3645.4,3644.9,41.48604]
[1736168545984,0.27441,3645.2,3645.1,0.27439]
[1736168546180,1.513,3645.4,3644.9,40.8]
[1736168546386,0.68598,3645.3,3644.6,0.4307]
[1736168546578,0.27443,3644.8,3644.7,0.27442]
[1736168547081,0.27443,3644.8,3644.7,41.07442]
[1736168547287,0.27443,3644.9,3644.8,0.27442]
[1736168550689,3.48222,3645.0,3644.9,0.27442]
[1736168562791,0.27442,3644.9,3644.8,0.69092]
[1736168562995,0.27442,3644.9,3644.8,0.4165]
[1736168563197,0.27442,3644.9,3644.8,0.69093]
[1736168563597,2.20592561,3644.9,3644.4,0.4214]
[1736168563895,0.27447,3644.3,3644.2,0.27447]
[1736168564196,1.35247,3644.3,3644.2,0.27447]
[1736168565302,0.27447,3644.2,3644.1,45.54614568]
[1736168565496,0.27447,3644.2,3644.1,45.10754568]
[1736168565695,0.27447,3644.2,3644.1,41.07448]
[1736168565897,0.27447,3644.2,3644.1,40.8]
[1736168566099,0.69177,3644.2,3644.1,40.8]
[1736168566793,0.69177,3644.2,3644.1,41.07448]
[1736168567389,0.4173,3644.2,3644.1,41.07448]
[1736168567595,2.13299765,3644.5,3644.4,0.27446]
[1736168567898,3.21099765,3644.5,3644.4,0.27446]
[1736168568903,1.078,3644.5,3644.4,0.27446]
[1736168570196,1.078,3644.5,3644.4,10.79910889]
[1736168570604,1.35245,3644.5,3644.4,10.79910889]
[1736168571697,3.48544765,3644.5,3644.3,4.31574394]
[1736168571902,0.27446,3644.4,3644.3,4.31574394]
[1736168572700,0.27446,3644.4,3644.3,4.59020394]
[1736168572996,0.27446,3644.4,3644.3,4.31574394]
[1736168573696,0.27446,3644.4,3644.3,4.59020394]
[1736168574100,0.27446,3644.4,3644.3,4.31574394]
[1736168575498,2.13299765,3644.4,3644.1,45.11574394]
[1736168575694,0.27447,3644.2,3644.1,45.39021394]
[1736168576603,2.13299765,3644.4,3644.1,45.11574394]
[1736168576904,2.13299765,3644.4,3644.3,0.27446]
[1736168578300,2.13299765,3644.8,3644.3,10.52349228]
[1736168578500,2.13299765,3644.8,3644.7,0.27443]
[1736168580208,1.34942,3644.9,3644.8,0.27443]
[1736168580411,1.075,3644.9,3644.8,0.27443]
[1736168580904,5.61521765,3645.0,3644.7,4.31371095]
[1736168580905,2.13299765,3645.0,3644.7,4.31371095]
[1736168581113,2.13299765,3645.0,3644.9,3.48222]
[1736168581406,1.34941,3645.1,3644.9,3.2078]
[1736168581614,1.34941,3645.1,3645.0,0.27441]
[1736168582611,2.13299765,3645.3,3645.2,0.2744]
[1736168583321,2.13299765,3645.3,3645.2,41.0744]
[1736168584022,3.20799765,3645.8,3645.2,44.85478642]
[1736168584232,3.20799765,3645.8,3645.7,0.27436]
[1736168584722,3.20799765,3645.8,3645.7,0.70246]
[1736168585321,1.075,3645.8,3645.7,0.70246]
[1736168585824,0.27437,3645.6,3645.5,4.30968753]
[1736168586322,1.34937,3645.6,3645.5,4.30968753]
[1736168586530,0.27438,3645.4,3645.3,4.30968753]
[1736168586827,3.48218,3645.4,3645.3,2.27088753]
[1736168587016,9.55718,3645.4,3645.3,1.24268753]
[1736168587918,0.27443,3644.7,3644.0,10.35855129]
[1736168588121,1.34943,3644.7,3644.0,10.35855129]
[1736168588524,1.075,3644.7,3644.0,10.35855129]
[1736168588929,0.27445,3644.5,3644.4,0.27445]
[1736168590829,0.27445,3644.6,3644.5,0.27444]
[1736168592228,3.22357335,3644.7,3644.6,0.27444]
[1736168592429,3.49800335,3644.7,3644.6,0.27444]
[1736168592827,1.34943,3644.7,3644.6,0.27444]
[1736168593440,1.34943,3644.7,3644.4,2.20592561]
[1736168593441,5.35637335,3644.9,3644.4,2.20592561]
[1736168593734,1.075,3644.8,3644.7,0.27443]
[1736168594330,1.075,3644.8,3644.7,41.07443]
[1736168594739,1.34943,3644.8,3644.7,41.07443]
[1736168595540,1.34943,3644.8,3644.7,40.8]
[1736168595734,0.27443,3644.7,3644.6,0.69484]
[1736168596133,0.27443,3644.7,3644.6,0.4204]
[1736168597238,0.27443,3644.7,3644.6,0.69484]
[1736168597427,0.27443,3644.7,3644.6,0.4204]
[1736168598941,0.27443,3644.7,3644.6,0.69484]
[1736168602238,0.27443,3644.7,3644.6,0.4204]
[1736168602434,0.27443,3644.7,3644.6,0.69484]
[1736168603245,0.27443,3644.7,3644.6,0.4204]
[1736168603640,0.27443,3644.7,3644.6,0.69484]
[1736168604343,0.27443,3644.7,3644.6,0.4204]
[1736168604546,0.27443,3644.7,3644.6,0.69484]
[1736168604750,0.27443,3644.7,3644.6,0.4204]
[1736168604941,0.27443,3644.7,3644.6,0.69484]
[1736168606545,5.35637335,3644.9,3644.6,0.4204]
[1736168606851,1.34743,3644.8,3644.7,0.71493]
[1736168620863,3.22286002,3645.1,3644.7,6.54031561]
[1736168621059,4.2971467,3645.3,3645.0,2.20592561]
[1736168621258,4.2971467,3645.3,3645.2,3.4822]
[1736168621460,4.2971467,3645.3,3645.2,44.59075822]
[1736168621663,5.3701467,3645.8,3645.2,45.20854897]
[1736168621865,5.3701467,3645.8,3645.7,0.27436]
[1736168622054,5.6444967,3645.8,3645.7,0.27436]
[1736168622865,1.34735,3645.8,3645.7,0.27436]
[1736168623369,1.073,3645.8,3645.7,0.27436]
[1736168624868,1.34735,3645.8,3645.7,0.27436]
[1736168625667,1.073,3645.8,3645.7,0.27436]
[1736168625970,1.34735,3645.8,3645.7,0.27436]
[1736168628669,0.27439,3645.3,3645.2,9.94672129]
[1736168629160,0.27439,3645.3,3645.2,9.67233129]
[1736168629565,0.27439,3645.3,3645.2,6.46453129]
[1736168629769,0.2744,3645.2,3645.1,0.2744]
[1736168630073,0.703,3645.2,3645.1,0.2744]
[1736168630767,0.2744,3645.1,3645.0,0.70441]
[1736168631071,0.4286,3645.2,3644.8,41.07442]
[1736168631072,0.27442,3644.9,3644.8,41.07442]
[1736168631264,1.34742,3644.9,3644.8,40.8]
[1736168631869,1.34742,3644.9,3644.8,41.07443]
[1736168632062,1.34742,3644.9,3644.8,40.8]
[1736168633868,1.34742,3644.9,3644.8,41.07443]
[1736168634471,1.34742,3644.9,3644.8,40.8]
[1736168634663,1.34742,3644.9,3644.8,41.07443]
[1736168634971,1.073,3644.9,3644.8,41.07443]
[1736168635669,1.34742,3644.9,3644.8,41.07443]
[1736168637371,0.27443,3644.8,3644.7,0.27443]
[1736168637581,0.27445,3644.6,3644.5,0.27445]
[1736168637764,0.4321,3644.7,3644.5,40.8]
[1736168637967,0.72714,3644.6,3644.5,40.8]
[1736168639070,0.72714,3644.6,3644.5,41.07445]
[1736168639376,0.72714,3644.6,3644.5,40.8]
[1736168641073,0.72714,3644.6,3644.5,41.07445]
[1736168642279,0.72714,3644.6,3644.5,40.8]
[1736168643275,0.72714,3644.6,3644.5,41.07445]
[1736168646174,0.72714,3644.6,3644.5,40.8]
[1736168646371,0.72714,3644.6,3644.5,41.07445]
[1736168647575,3.2078,3645.0,3644.9,0.27442]
[1736168647787,3.2078,3645.0,3644.9,2.48034561]
[1736168648080,3.2078,3645.0,3644.6,0.8411]
[1736168648276,0.27443,3644.8,3644.7,0.27442]
[1736168648580,0.27443,3644.8,3644.7,41.07442]
[1736168648787,1.34543,3644.8,3644.7,41.07442]
[1736168650083,1.34543,3644.8,3644.7,40.8]
[1736168650483,1.34543,3644.8,3644.3,6.46453129]
[1736168650484,0.27446,3644.5,3644.3,6.46453129]
[1736168650678,0.27446,3644.5,3644.4,0.69545]
[1736168650879,0.27446,3644.5,3644.4,41.49545]
[1736168652485,2.20592561,3644.6,3644.2,3.2078]
[1736168652681,0.27447,3644.3,3644.2,3.2078]
[1736168652983,0.27447,3644.3,3644.2,44.28227]
[1736168658692,0.27447,3644.3,3644.2,44.0078]
[1736168659081,2.20592561,3644.6,3643.9,6.46453129]
[1736168659385,0.2745,3643.9,3643.8,8.03223129]
[1736168659596,1.3455,3643.9,3643.8,48.83223129]
[1736168660388,1.071,3643.9,3643.8,48.83223129]
[1736168660592,1.071,3643.9,3643.8,42.3677]
[1736168661790,1.071,3643.9,3643.8,45.5755]
[1736168662290,1.3455,3643.9,3643.8,45.5755]
[1736168663682,1.071,3643.9,3643.8,45.5755]
[1736168665091,3.6226,3644.6,3644.5,0.27445]
[1736168665284,4.96804,3644.6,3644.5,0.27445]
[1736168665485,4.6936,3644.6,3644.5,0.27445]
[1736168665888,4.6936,3644.6,3644.5,41.07445]
[1736168665889,4.2788,3644.6,3644.5,41.07445]
[1736168666285,4.55324,3644.6,3644.5,41.07445]
[1736168666691,1.34544,3644.6,3644.5,41.07445]
[1736168666885,1.071,3644.6,3644.5,41.51465]
[1736168671385,1.071,3644.6,3644.4,0.4121]
[1736168671595,0.27446,3644.4,3644.3,7.15249129]
[1736168671794,0.27446,3644.4,3644.3,6.46453129]
[1736168672392,0.27448,3644.1,3644.0,0.27448]
[1736168672798,0.68616,3644.4,3643.8,3.2078]
[1736168672799,0.2745,3643.9,3643.8,3.48229]
[1736168673097,1.07,3643.9,3643.8,3.48229]
[1736168675596,1.07,3643.9,3643.8,7.59545003]
[1736168676297,1.07,3643.9,3643.8,48.39545003]
[1736168679294,1.3445,3643.9,3643.8,44.91316003]
[1736168679496,1.7828,3643.9,3643.8,4.11316003]
[1736168680201,1.7828,3643.9,3643.8,4.38766003]
[1736168680500,1.7828,3643.9,3643.8,0.2745]
[1736168681589,1.07,3643.9,3643.8,0.2745]
[1736168682090,1.07,3643.9,3643.8,3.4823]
[1736168682401,0.4113,3644.2,3644.1,0.27448]
[1736168682592,3.5012001,3644.3,3643.8,3.4823]
[1736168682593,3.2267301,3644.3,3644.2,0.27447]
[1736168682794,4.2967301,3644.3,3644.2,0.27447]
[1736168683093,3.2267301,3644.3,3644.2,41.07447]
[1736168683794,0.4113,3644.3,3644.2,41.07447]
[1736168684198,1.07,3644.4,3644.2,40.8]
[1736168684400,1.07,3644.4,3644.3,0.27447]
[1736168685201,1.07,3644.4,3644.3,4.38827727]
[1736168685995,1.34446,3644.4,3644.3,4.38827727]
[1736168686302,1.07,3644.4,3644.3,4.38827727]
[1736168686497,1.34446,3644.4,3644.3,10.86003715]
[1736168687498,1.34446,3644.4,3644.3,10.58556715]
[1736168687894,0.27447,3644.2,3644.1,6.74623988]
[1736168688092,0.27447,3644.2,3644.1,6.47175988]
[1736168689097,0.27447,3644.2,3644.1,6.74623988]
[1736168689605,0.27447,3644.2,3644.1,0.27448]
[1736168694307,0.28885176,3644.2,3644.1,0.27448]
[1736168696404,0.01438176,3644.2,3644.1,0.27448]
[1736168697501,0.01438176,3644.2,3644.1,41.07448]
[1736168697909,0.01438176,3644.2,3644.1,53.75476785]
[1736168698311,0.01438176,3644.2,3644.1,54.17226785]
[1736168699304,0.01438176,3644.2,3644.1,45.60659853]
[1736168699707,0.01438176,3644.2,3644.1,4.80659853]
[1736168699708,0.28885176,3644.2,3644.1,4.80659853]
[1736168700111,0.28885176,3644.2,3644.1,4.38909853]
[1736168700306,0.28885176,3644.2,3644.1,4.11461853]
[1736168702413,0.27449,3644.0,3643.9,0.2745]
[1736168703009,0.27449,3644.0,3643.7,47.27264201]
[1736168703010,0.2745,3643.8,3643.7,47.27264201]
[1736168703215,1.3435,3643.8,3643.7,47.27264201]
[1736168703403,1.35788176,3643.8,3643.7,6.47264201]
[1736168703713,0.27451,3643.7,3643.6,6.47264201]
[1736168703913,3.48231,3643.7,3643.6,47.27264201]
[1736168704309,3.89731,3643.7,3643.6,47.27264201]
[1736168704510,3.91169176,3643.7,3643.6,47.27264201]
[1736168704711,6.11761737,3643.7,3643.6,6.47264201]
[1736168704909,11.11761737,3643.7,3643.6,3.14100863]
[1736168705303,10.84310737,3643.7,3643.2,3.14100863]
[1736168705503,3.48234,3643.3,3643.2,3.14100863]
[1736168706712,3.49672176,3643.3,3643.2,3.14100863]
[1736168706905,0.27457,3642.9,3642.8,3.48237]
[1736168707103,1.34357,3642.9,3642.8,3.48237]
[1736168707505,1.35795176,3642.9,3642.8,3.48237]
[1736168708917,1.08338176,3642.9,3642.8,3.48237]
[1736168709215,1.08338176,3642.9,3642.8,5.68829561]
[1736168709416,1.08338176,3642.9,3642.8,46.48829561]
[1736168709914,1.08338176,3642.9,3642.8,44.28237]
[1736168710712,1.08338176,3642.9,3642.8,52.61857095]
[1736168712213,1.08338176,3642.9,3642.8,48.59306933]
[1736168712517,1.35795176,3642.9,3642.8,48.31849933]
[1736168713814,1.35795176,3642.9,3642.8,44.0078]
[1736168714526,0.2746,3642.5,3642.4,4.31069933]
[1736168714720,5.68832561,3642.5,3642.4,4.31069933]
[1736168715421,3.4824,3642.5,3642.4,4.31069933]
[1736168715617,3.4824,3642.5,3642.0,45.38533933]
[1736168715618,0.27463,3642.1,3642.0,45.38533933]
[1736168715819,1.07,3642.1,3642.0,45.38533933]
[1736168716625,1.08438176,3642.1,3642.0,45.38533933]
[1736168716925,1.08438176,3642.1,3642.0,41.07464]
[1736168717316,0.01438176,3642.1,3642.0,44.28244]
[1736168717624,1.07,3642.2,3642.1,0.27463]
[1736168717814,1.07,3642.6,3642.3,0.68653]
[1736168718021,1.07,3642.6,3642.0,3.2078]
[1736168718022,0.27459,3642.7,3642.4,0.8762]
[1736168718224,1.07,3642.6,3642.5,41.0746]
[1736168718526,1.34459,3642.6,3642.5,40.8]
[1736168719232,1.07,3642.6,3642.5,44.2824]
[1736168722126,0.27458,3642.8,3642.5,44.0078]
[1736168722320,1.07,3642.8,3642.7,2.20592561]
[1736168722520,1.07,3643.0,3642.8,0.27458]
[1736168722726,1.34455,3643.2,3643.1,0.27455]
[1736168722926,1.34455,3643.2,3643.1,41.07455]
[1736168723918,1.34455,3643.2,3643.1,40.8]
[1736168724427,1.07,3643.2,3642.9,0.4174]
[1736168724626,1.07,3643.2,3642.6,0.4274]
[1736168724825,0.27459,3642.7,3642.6,0.4274]
[1736168728937,0.27459,3642.8,3642.7,0.27458]
[1736168732138,0.27459,3642.7,3642.6,0.70199]
[1736168733236,0.27459,3642.7,3642.6,0.4274]
[1736168733439,0.4441,3642.9,3642.4,0.8574]
[1736168733734,0.2746,3642.5,3642.4,0.4102]
[1736168733936,1.3506,3642.5,3642.4,0.4102]
[1736168734628,1.076,3642.5,3642.1,40.8]
[1736168734829,0.27462,3642.2,3642.1,40.8]
[1736168735333,0.27462,3642.2,3642.1,41.07463]
[1736168735842,0.27462,3642.2,3642.1,40.8]
[1736168736040,0.27462,3642.2,3642.1,41.07463]
[1736168737331,0.27462,3642.2,3642.1,40.8]
[1736168739439,0.27462,3642.2,3642.1,41.07463]
[1736168740934,0.27462,3642.2,3642.1,40.8]
[1736168742544,3.48242,3642.2,3642.1,40.8]
[1736168743034,0.27466,3641.7,3641.6,0.27467]
[1736168743235,1.35066,3641.7,3641.6,0.27467]
[1736168743434,1.35066,3641.7,3641.6,41.07467]
[1736168745035,1.076,3641.7,3641.6,41.07467]
[1736168748245,1.35066,3641.7,3641.6,41.07467]
[1736168749439,1.35066,3641.7,3641.6,40.8]